[Event "7th Sharjah Masters 2024"]
[Site "Sharjah"]
[Date "2024.05.17"]
[Round "4.21"]
[White "Pranav, V."]
[Black "Martirosyan, Haik M."]
[Result "1/2-1/2"]
[ECO "C67"]
[WhiteElo "2587"]
[BlackElo "2679"]
[Annotator "TA"]
[PlyCount "111"]
[EventDate "2024.05.13"]
[EventType "swiss"]
[EventCountry "UAE"]
[SourceTitle "playchess.com"]
[Source "ChessBase"]
[SourceQuality "1"]
[TimeControl "5400+30"]

{[%evp 14,111,0,-1,22,14,12,0,0,2,16,8,23,18,9,19,23,-64,0,0,0,0,0,0,0,-129,-90,-122,-19,-24,0,0,0,-10,-8,-8,-8,-10,-8,-8,-8,-33,-8,-1,-2,-3,0,-4,0,0,0,0,29,0,0,0,0,0,0,0,55,0,0,0,0,0,0,0,0,0,0,0,0,0,0,0,0,0,0,0,0,-8,-9,-16,-16,-16,-16,-16,-16,-16,-16,-16,-16,-16,-16,-16,-16,-16,-16,-16]} 1. e4 {[%emt 0:00:27]} e5 {[%emt 0:00:28]} 2. Nf3 {[%emt 0:00:08]} Nc6 {[%emt 0:00:07]} 3. Bb5 {[%emt 0:00:07]} Nf6 {[%emt 0:00:18]} 4. O-O {[%emt 0:00:12]} Nxe4 {[%emt 0:00:07]} 5. d4 {[%emt 0:00:06]} Nd6 {[%emt 0:00:18]} 6. dxe5 {[%emt 0:00:07]} Nxb5 {[%emt 0:00:16]} 7. a4 {[%emt 0:00:05]} d6 {[%emt 0:07:28]} 8. e6 {[%emt 0:00:10] [#]} Bxe6 {[%emt 0:00:06]} 9. axb5 {[%emt 0:00:07]} Ne5 {[%emt 0:00:02]} 10. Nd4 {[%emt 0:00:25]} Be7 {[%emt 0:00:07]} 11. f4 {[%emt 0:04:23][%cal Od4e6] Threatens to win with Nxe6!} Nc4 {[%emt 0:00:25]} 12. Nc3 {[%emt 0:00:29]} Nb6 {[%emt 0:05:51]} 13. Nxe6 {[%emt 0:21:49]} fxe6 {[%emt 0:00:33]} 14. Qg4 {[%emt 0:00:04][%csl LRe6,LRg7]} Bf6 {[%emt 0:22:37]} 15. f5 {[%emt 0:24:55]} (15. Ne4 $11) 15... exf5 {[%emt 0:05:38]} ({Black should try} 15... Bxc3 $1 $15 16. bxc3 O-O) 16. Re1+ $11 {[%emt 0:00:49]} Be5 {[%emt 0:16:11]} 17. Qxg7 {[%emt 0:03:49]} Qe7 {[%emt 0:00:01]} 18. Qh6 {[%emt 0:00:31] Strongly threatening Bg5.} Kd7 {[%emt 0:01:29]} 19. Bg5 {[%emt 0:10:42] [#]} (19. Qh3 $11 {remains equal.}) 19... Qf7 $1 $17 {[%emt 0:04:55]} 20. Qh3 {[%emt 0:03:02]} Qg6 {[%emt 0:01:44]} (20... Rhg8 $17 21. Bd2 Rg4) 21. Rf1 $1 $11 {[%emt 0:01:33]} Raf8 {[%emt 0:06:27]} (21... Qxg5 $2 22. Rxf5 Qg6 (22... Bd4+ $2 23. Kh1 $18) 23. Rxe5+ (23. Rf6+ Kd8 $18) 23... Kd8 24. Re6 $18) (21... Rhf8 $5 22. Bf4 Bd4+ 23. Kh1 h5 $11) 22. Bh6 {[%emt 0:03:14]} Rf6 {[%emt 0:00:36]} 23. Be3 {[%emt 0:04:12]} Qg4 {[%emt 0:02:52]} 24. Qxg4 {[%emt 0:05:44]} fxg4 {[%emt 0:00:02]} 25. Rxf6 {[%emt 0:00:08]} Bxf6 {[%emt 0:00:04]} 26. Rxa7 {[%emt 0:00:25]} Nc4 {[%emt 0:01:42][%csl LRb2,LRe3]} 27. Nd5 {[%emt 0:01:32]} Nxe3 {[%emt 0:04:09]} 28. Nxf6+ $15 {[%emt 0:00:07][%mdl 4096] Endgame. KRN-KRN} Ke6 {[%emt 0:00:07]} 29. Ne4 {[%emt 0:00:52]} Rb8 {[%emt 0:20:20]} 30. Ra3 {[%emt 0:01:16]} Nc4 {[%emt 0:00:00]} 31. Rc3 {[%emt 0:08:04]} d5 {[%emt 0:00:00][%cal Oc4b2]} 32. Nf2 {[%emt 0:00:08]} Kd6 {[%emt 0:00:00] [#]} 33. Ne4+ $1 {[%emt 0:01:22]} Ke5 {[%emt 0:00:00]} (33... dxe4 34. Rxc4 Re8 35. Kf2 $14) 34. Nf2 {[%emt 0:00:32]} h5 {[%emt 0:00:00][%cal Ob8a8]} ({Much weaker is} 34... Nxb2 $6 35. Rxc7 h5 36. Rh7 $16) 35. b3 {[%emt 0:01:57]} Ra8 {[%emt 0:00:14] aiming for ...Ra1+.} 36. Kf1 {[%emt 0:00:28]} ({Much less strong is} 36. Nxg4+ $6 hxg4 37. bxc4 Ra1+ 38. Kf2 Kd4 $16) 36... Ra3 {[%emt 0:00:46]} (36... Nd6 $11 37. Rxc7 Nxb5 38. Rxb7 Nd4 39. Nd3+ Kd6) 37. h3 {[%emt 0:00:25]} ({White should play} 37. Nd1 $1 $14 Nd2+ (37... Ra1 38. Ke2 $16) 38. Ke2) 37... Kd6 $11 {[%emt 0:00:59] The position is equal.} 38. hxg4 {[%emt 0:01:10]} hxg4 {[%emt 0:00:00]} 39. Nxg4 {[%emt 0:00:56]} Ra1+ $1 {[%emt 0:00:05]} 40. Ke2 {[%emt 0:00:07]} Na3 {[%emt 0:00:03]} 41. b6 {[%emt 0:02:59]} c5 {[%emt 0:01:00]} 42. Rh3 {[%emt 0:00:28]} Kc6 {[%emt 0:00:15]} 43. Ne3 {[%emt 0:01:00]} d4 {[%emt 0:00:23]} 44. Nc4 {[%emt 0:00:47]} Nxc4 {[%emt 0:00:41]} 45. bxc4 {[%emt 0:00:01]} Kxb6 {[%emt 0:00:13] KR-KR} 46. Rb3+ {[%emt 0:00:51]} Kc6 {[%emt 0:00:10]} 47. c3 {[%emt 0:00:20]} Ra2+ {[%emt 0:00:43]} 48. Kd3 {[%emt 0:00:32]} dxc3 {[%emt 0:00:41]} 49. Kxc3 {[%emt 0:00:07]} Rxg2 {[%emt 0:00:11] ( -> ...Rg3+)} 50. Rb1 {[%emt 0:00:05]} Rg3+ {[%emt 0:00:16]} 51. Kc2 {[%emt 0:00:01]} b6 {[%emt 0:00:08]} 52. Rh1 {[%emt 0:00:11]} Kb7 {[%emt 0:00:24]} 53. Rf1 {[%emt 0:00:14]} Re3 {[%emt 0:01:21]} 54. Rh1 {[%emt 0:00:18]} Re6 {[%emt 0:01:00]} 55. Rg1 {[%emt 0:00:19]} Kc6 {[%emt 0:00:04]} 56. Kc3 {[%emt 0:00:18] Weighted Error Value: White=0.12 (very precise) /Black=0.10 (very precise) .  Mistake:       	White=3     	Black=3      Inaccurate:     	White=2     	Black=1      OK:         	White=24    	Black=22     Best:        	White=4     	---        Strong:       	White=1     	Black=2} 1/2-1/2

[Event "7th Sharjah Masters 2024"]
[Site "Sharjah"]
[Date "2024.05.17"]
[Round "4.22"]
[White "Yakubboev, Nodirbek"]
[Black "Mchedlishvili, Mikheil"]
[Result "1/2-1/2"]
[ECO "E15"]
[WhiteElo "2665"]
[BlackElo "2569"]
[Annotator "RC"]
[PlyCount "169"]
[EventDate "2024.05.13"]
[EventType "swiss"]
[EventCountry "UAE"]
[SourceTitle "playchess.com"]
[Source "ChessBase"]
[SourceQuality "1"]
[TimeControl "5400+30"]

1. d4 {[%emt 0:00:04]} Nf6 {[%emt 0:00:16]} 2. c4 {[%emt 0:00:14]} e6 {[%emt 0:00:27]} 3. Nf3 {[%emt 0:00:18]} b6 {[%emt 0:00:38]} 4. g3 {[%emt 0:02:35]} Ba6 {[%emt 0:01:01]} 5. Qc2 {[%emt 0:00:35]} Bb7 {[%emt 0:01:03]} 6. Bg2 {[%emt 0:00:11]} c5 {[%emt 0:01:10]} 7. d5 {[%emt 0:00:13]} exd5 {[%emt 0:01:01]} 8. cxd5 {[%emt 0:00:25]} Nxd5 {[%emt 0:00:38]} 9. O-O {[%emt 0:00:08]} Be7 {[%emt 0:00:43]} 10. Rd1 {[%emt 0:00:12]} Nc6 {[%emt 0:01:26]} 11. a3 {[%emt 0:00:08]} Nc7 {[%emt 0:02:11]} 12. Nc3 {[%emt 0:01:49]} O-O {[%emt 0:02:14]} 13. Bf4 {[%emt 0:00:30]} Ne6 {[%emt 0:01:59]} 14. e3 {[%emt 0:00:28]} Nxf4 {[%emt 0:02:29]} 15. gxf4 {[%emt 0:00:03]} d6 {[%emt 0:02:46]} 16. Rd2 {[%emt 0:02:02]} h6 {[%emt 0:02:02]} 17. Rad1 {[%emt 0:01:44]} Qd7 {[%emt 0:13:37]} 18. h3 {[%emt 0:16:06]} Rad8 {[%emt 0:02:20]} 19. Nd5 {[%emt 0:03:26]} Rfe8 {[%emt 0:16:55]} 20. b4 {[%emt 0:19:46]} Bf8 {[%emt 0:04:30]} 21. b5 {[%emt 0:10:53]} Na5 {[%emt 0:07:15]} 22. a4 {[%emt 0:03:35]} Qc8 {[%emt 0:09:39]} 23. Kh2 {[%emt 0:05:25]} c4 {[%emt 0:03:08]} 24. Rd4 {[%emt 0:00:51]} Rd7 {[%emt 0:05:30]} 25. Nd2 {[%emt 0:04:51]} Qd8 {[%emt 0:06:58]} 26. Nxc4 {[%emt 0:03:55]} Nxc4 {[%emt 0:00:22]} 27. Rxc4 {[%emt 0:00:12]} g6 {[%emt 0:01:54]} 28. Nc7 {[%emt 0:09:00]} Ree7 {[%emt 0:01:03]} 29. Bxb7 {[%emt 0:00:03]} Rxc7 {[%emt 0:00:06]} 30. Bc6 {[%emt 0:00:10]} Re6 {[%emt 0:00:53]} 31. Bd5 {[%emt 0:04:09]} Rxc4 {[%emt 0:00:41]} 32. Qxc4 {[%emt 0:02:22]} Qh4 {[%emt 0:01:15]} 33. Kg2 {[%emt 0:00:10]} Re7 {[%emt 0:04:04]} 34. Rc1 {[%emt 0:02:53]} g5 {[%emt 0:03:23]} 35. fxg5 {[%emt 0:05:48]} Qxc4 {[%emt 0:00:24]} 36. Rxc4 {[%emt 0:00:03]} hxg5 {[%emt 0:00:05]} 37. Rc8 {[%emt 0:00:16]} Kg7 {[%emt 0:00:33]} 38. e4 {[%emt 0:00:33]} Re5 {[%emt 0:00:30]} 39. Ra8 {[%emt 0:00:57]} Re7 {[%emt 0:00:02]} 40. Kf3 {[%emt 0:01:15]} Rc7 {[%emt 0:00:25]} 41. Kg4 {[%emt 0:01:04]} Be7 {[%emt 0:00:10]} 42. Kf5 {[%emt 0:00:22]} Bf6 {[%emt 0:00:46]} 43. f3 {[%emt 0:00:10]} Be7 {[%emt 0:01:00]} 44. Bc6 {[%emt 0:00:39]} Bf6 {[%emt 0:00:21]} 45. f4 {[%emt 0:00:25]} gxf4 {[%emt 0:00:28]} 46. Kxf4 {[%emt 0:00:02]} Be5+ {[%emt 0:01:51]} 47. Kf5 {[%emt 0:00:10]} Bf6 {[%emt 0:00:27]} 48. Kg4 {[%emt 0:00:46]} Be5 {[%emt 0:00:36]} 49. Kg5 {[%emt 0:00:36]} Bf6+ {[%emt 0:00:05]} 50. Kf5 {[%emt 0:00:06]} Re7 {[%emt 0:00:44]} 51. Rc8 {[%emt 0:00:39]} Re5+ {[%emt 0:00:11]} 52. Kf4 {[%emt 0:00:51]} Re7 {[%emt 0:00:10]} 53. Ke3 {[%emt 0:00:48]} Kh6 {[%emt 0:00:47]} 54. Rg8 {[%emt 0:01:13]} Kh7 {[%emt 0:00:03]} 55. Rd8 {[%emt 0:00:39]} Be5 {[%emt 0:00:30]} 56. Kd3 {[%emt 0:00:17]} Kg7 {[%emt 0:00:44]} 57. Kc4 {[%emt 0:00:17]} Bg3 {[%emt 0:00:17]} 58. Rc8 {[%emt 0:00:36]} Kh7 {[%emt 0:00:43]} 59. Bd5 {[%emt 0:00:32]} Kg7 {[%emt 0:00:06]} 60. Kd3 {[%emt 0:00:34]} Be5 {[%emt 0:00:46]} 61. Rc2 {[%emt 0:00:28]} Bf6 {[%emt 0:00:32]} 62. Rg2+ {[%emt 0:00:18]} Kf8 {[%emt 0:00:11]} 63. Rg1 {[%emt 0:00:55]} Rc7 {[%emt 0:00:09]} 64. Bc6 {[%emt 0:00:02]} Re7 {[%emt 0:00:06]} 65. Rc1 {[%emt 0:01:07]} Kg7 {[%emt 0:00:30]} 66. Rg1+ {[%emt 0:00:09]} Kf8 {[%emt 0:00:02]} 67. Rg3 {[%emt 0:00:44]} Re5 {[%emt 0:00:19]} 68. Rf3 {[%emt 0:00:50]} Kg7 {[%emt 0:00:23]} 69. Bd5 {[%emt 0:00:34]} Re7 {[%emt 0:00:12]} 70. Kc4 {[%emt 0:00:11]} Kg6 {[%emt 0:00:53]} 71. Kb4 {[%emt 0:00:31]} Kg7 {[%emt 0:01:04]} 72. Rd3 {[%emt 0:00:36]} Re5 {[%emt 0:01:15]} 73. Rg3+ {[%emt 0:00:34]} Rg5 {[%emt 0:00:30]} 74. Rf3 {[%emt 0:00:17]} Rg1 {[%emt 0:00:25]} 75. a5 {[%emt 0:00:41]} Rb1+ {[%emt 0:00:32]} 76. Bb3 {[%emt 0:00:13]} Re1 {[%emt 0:00:33]} 77. Bd5 {[%emt 0:01:04]} Rb1+ {[%emt 0:00:02]} 78. Bb3 {[%emt 0:00:10]} Re1 {[%emt 0:00:03]} 79. axb6 {[%emt 0:00:51]} axb6 {[%emt 0:00:35]} 80. Bd5 {[%emt 0:00:14]} Rb1+ {[%emt 0:00:07]} 81. Kc4 {[%emt 0:00:02]} Rc1+ {[%emt 0:00:14]} 82. Kb3 {[%emt 0:00:12]} Rb1+ {[%emt 0:00:20]} 83. Kc4 {[%emt 0:00:27]} Rc1+ {[%emt 0:00:07]} 84. Kb3 {[%emt 0:00:19]} Rb1+ {[%emt 0:00:08]} 85. Kc4 {[%emt 0:00:04]} 1/2-1/2

[Event "7th Sharjah Masters 2024"]
[Site "Sharjah"]
[Date "2024.05.17"]
[Round "4.23"]
[White "Moroni, Luca Jr"]
[Black "Sadhwani, Raunak"]
[Result "1/2-1/2"]
[ECO "A13"]
[WhiteElo "2581"]
[BlackElo "2654"]
[Annotator "TA"]
[PlyCount "58"]
[EventDate "2024.05.13"]
[EventType "swiss"]
[EventCountry "UAE"]
[SourceTitle "playchess.com"]
[Source "ChessBase"]
[SourceQuality "1"]
[TimeControl "5400+30"]

{[%evp 9,58,0,25,6,3,-15,-9,-27,-26,-36,-35,-114,-118,-101,-124,-113,-117,-122,-125,-118,-102,-122,-125,-122,-117,-137,-110,-86,-89,-82,-102,-89,-79,-104,0,0,0,0,0,0,0,0,0,0,0,0,0,0,0,0,0]} 1. c4 {[%emt 0:00:05]} Nf6 {[%emt 0:00:38]} 2. g3 {[%emt 0:00:06]} e6 {[%emt 0:00:06]} 3. Bg2 {[%emt 0:00:11]} d5 {[%emt 0:00:11]} 4. Nf3 {[%emt 0:00:10]} d4 {[%emt 0:00:22]} 5. d3 {[%emt 0:01:58]} Bb4+ {[%emt 0:02:42]} 6. Nbd2 {[%emt 0:02:24] Threatening Qa4+.} a5 {[%emt 0:02:29][%cal Ba7a5,Ba5a4][%mdl 32]} 7. a3 {[%emt 0:07:19]} Be7 {[%emt 0:00:45]} 8. O-O {[%emt 0:05:27]} Nc6 {[%emt 0:05:30]} 9. Nb3 {[%emt 0:04:27]} e5 {[%emt 0:06:53]} (9... a4 $5 10. Nbd2 $8 e5 $15) 10. e3 {[%emt 0:16:40]} (10. a4 $15) 10... a4 $17 {[%emt 0:05:52]} 11. exd4 {[%emt 0:00:31][%cal Od4d5]} axb3 {[%emt 0:00:05]} 12. dxe5 {[%emt 0:00:09]} Nd7 {[%emt 0:00:05][%cal Bf6d7,Bd7b6,Bb6d5][%mdl 32]} 13. d4 {[%emt 0:01:34] [#]} Nb6 $1 {[%emt 0:05:24]} 14. c5 {[%emt 0:05:26]} (14. Qxb3 $2 Nxd4 15. Nxd4 Qxd4 $19) 14... Nd5 {[%emt 0:01:52]} 15. Qxb3 {[%emt 0:00:10]} O-O {[%emt 0:00:17]} 16. Be3 {[%emt 0:04:07][%cal Of3g5]} Be6 {[%emt 0:01:54][%cal Od5f4]} 17. Qxb7 {[%emt 0:12:43]} Na5 {[%emt 0:03:35][%cal Bc6a5,Ba5c4,Bc4e3][%mdl 32] Excellent horsemanship.} 18. Qb5 {[%emt 0:00:08]} Nxe3 {[%emt 0:05:41]} 19. fxe3 {[%emt 0:01:26] [#]} Nc4 {[%emt 0:00:12][%cal Oa8b8] Repels Nd2. Threatens to win with ...Rb8!} 20. Rfe1 {[%emt 0:10:21]} Rb8 {[%emt 0:09:27]} 21. Qa4 {[%emt 0:00:06]} Bg5 {[%emt 0:02:41]} ({Better is} 21... Rxb2 $17 {...Bg5 is the strong threat.} 22. Rac1 Nd2 (22... Rxg2+ 23. Kxg2 Nb2 24. Qb5 $16) 23. Nxd2 Rxd2) 22. Nxg5 $11 {[%emt 0:00:55] The position is equal.} Qxg5 {[%emt 0:00:13]} 23. d5 {[%emt 0:01:03]} Nxe3 {[%emt 0:03:24]} ({And not} 23... Nxb2 24. Qd4 Bf5 25. e4 $16) 24. dxe6 {[%emt 0:00:12]} Nxg2 {[%emt 0:00:04]} 25. e7 {[%emt 0:00:40]} (25. exf7+ Rxf7 26. Re4 Qd2 $17 (26... Rxb2 $2 {perishes.} 27. e6 $18)) 25... Qxe7 {[%emt 0:06:15]} 26. Re2 {[%emt 0:00:35]} Ne3 {[%emt 0:00:15]} 27. Qe4 $1 {[%emt 0:00:08]} Rb3 {[%emt 0:01:09]} 28. Rxe3 {[%emt 0:01:27]} Qxc5 {[%emt 0:00:12]} 29. Rae1 {[%emt 0:00:06]} Rxb2 {[%emt 0:01:09] Weighted Error Value: White=0.07 (flawless) /Black=0.09 (flawless) .  Mistake:       	White=1     	Black=1      OK:         	White=11    	Black=14     Best:        	White=4     	Black=4      Strong:       	White=1     	Black=1} 1/2-1/2

[Event "7th Sharjah Masters 2024"]
[Site "Sharjah"]
[Date "2024.05.17"]
[Round "4.24"]
[White "Sanal, Vahap"]
[Black "Mendonca, Leon Luke"]
[Result "0-1"]
[ECO "B53"]
[WhiteElo "2566"]
[BlackElo "2640"]
[Annotator "TA"]
[PlyCount "133"]
[EventDate "2024.05.13"]
[EventType "swiss"]
[EventCountry "UAE"]
[SourceTitle "playchess.com"]
[Source "ChessBase"]
[SourceQuality "1"]
[TimeControl "5400+30"]

{[%evp 73,133,-177,-179,-175,-174,-183,-167,-155,-160,-187,-129,-150,-132,-116,-116,-123,-102,-147,-120,-131,-123,-161,-132,-225,-225,-428,-393,-672,-665,-678,-659,-601,-370,-370,-342,-343,-331,-331,-337,-720,-708,-694,-667,-667,-663,-737,-423,-415,-415,-592,-580,-12791,-4792,-12780,-10703,-5608,-4702,-29962,-12805,-12790,-2146,-29986]} 1. e4 {[%emt 0:01:24]} c5 {[%emt 0:01:59]} 2. Nf3 {[%emt 0:00:08]} d6 {[%emt 0:00:05]} 3. Nc3 {[%emt 0:00:07]} Nf6 {[%emt 0:00:58]} 4. d4 {[%emt 0:00:14]} cxd4 {[%emt 0:00:07]} 5. Qxd4 {[%emt 0:00:06]} Nc6 {[%emt 0:00:34]} 6. Qe3 {[%emt 0:00:11] B53: Sicilian: 2...d6: Lines with Qxd4.} g6 {[%emt 0:02:40]} 7. Bc4 {[%emt 0:00:15]} Bg7 {[%emt 0:00:08]} 8. h3 {[%emt 0:00:12]} O-O {[%emt 0:01:03]} 9. O-O {[%emt 0:00:08]} b6 {[%emt 0:02:41]} 10. Rd1 {[%emt 0:00:38]} Bb7 {[%emt 0:05:05]} 11. Bb3 $146 {[%emt 0:03:54]} ({Predecessor:} 11. Qf4 Rc8 12. Bb3 Na5 13. Qh4 Rc5 14. Bg5 Qa8 15. Re1 Re8 16. Rad1 Nxb3 17. cxb3 {½-½ Demchenko,A (2654)-Vokhidov,S (2536) Titled Tuesday intern op 01st Feb-A blitz 2022 (7)}) 11... Nd7 {[%emt 0:09:23]} 12. Qf4 {[%emt 0:05:17]} Nc5 {[%emt 0:13:23]} 13. Qh4 {[%emt 0:06:11]} e6 {[%emt 0:02:10]} 14. Bg5 {[%emt 0:04:10]} f6 {[%emt 0:01:25]} 15. Bh6 {[%emt 0:06:20]} Qe7 {[%emt 0:06:36]} 16. Bxg7 {[%emt 0:01:06]} Kxg7 {[%emt 0:00:04]} 17. Qg3 {[%emt 0:07:30]} Rad8 {[%emt 0:02:28]} 18. Rd2 {[%emt 0:01:17]} Na5 {[%emt 0:12:05]} 19. Nd4 {[%emt 0:07:12]} Kh8 {[%emt 0:00:22]} 20. Re1 {[%emt 0:02:16]} e5 {[%emt 0:09:50]} 21. Nf3 {[%emt 0:01:29]} Naxb3 {[%emt 0:01:44]} 22. axb3 {[%emt 0:00:13]} f5 {[%emt 0:00:14]} 23. Qg5 {[%emt 0:07:51]} Rf6 {[%emt 0:07:18]} 24. Qh4 {[%emt 0:07:16]} Nxe4 {[%emt 0:09:04]} 25. Nxe4 {[%emt 0:01:33]} fxe4 {[%emt 0:00:05]} 26. Nh2 {[%emt 0:01:23]} g5 {[%emt 0:00:08]} 27. Qxg5 {[%emt 0:06:35]} Rg8 {[%emt 0:00:17]} 28. Qe3 {[%emt 0:00:18]} Rfg6 {[%emt 0:05:52]} 29. g4 {[%emt 0:00:47]} Rf8 {[%emt 0:01:14]} 30. c4 {[%emt 0:00:42]} h5 {[%emt 0:01:07]} 31. Qg3 {[%emt 0:07:02]} Rf4 {[%emt 0:00:14]} 32. f3 {[%emt 0:00:41]} h4 {[%emt 0:05:27]} 33. Qf2 {[%emt 0:00:40]} exf3 {[%emt 0:00:00]} 34. Red1 {[%emt 0:06:01]} Kg8 {[%emt 0:00:03]} 35. Kh1 {[%emt 0:05:18]} Re4 {[%emt 0:00:16]} 36. Kg1 {[%emt 0:00:20]} Qg5 {[%emt 0:01:32]} 37. Re1 {[%emt 0:04:09]} (37. Nxf3 $2 Rxg4+ 38. hxg4 Qxg4+ 39. Qg2 Bxf3 40. Qxg4 Rxg4+ 41. Kf1 $19) 37... Rxe1+ {[%emt 0:00:44]} 38. Qxe1 {[%emt 0:00:02]} e4 {[%emt 0:00:32]} 39. Nf1 {[%emt 0:00:42]} Re6 {[%emt 0:00:22]} 40. Qe3 {[%emt 0:01:42]} Qe5 {[%emt 0:00:35]} 41. Kf2 {[%emt 0:00:45]} Kg7 {[%emt 0:00:08]} (41... Kf8 $19 42. b4 Kf7) 42. Qc3 $17 {[%emt 0:00:26]} Kf6 {[%emt 0:00:56]} 43. Ne3 {[%emt 0:01:12]} Qxc3 {[%emt 0:00:19]} 44. bxc3 {[%emt 0:00:01]} Ke5 {[%emt 0:00:09]} 45. Nf5 {[%emt 0:00:36]} a6 {[%emt 0:01:01]} 46. Ke3 {[%emt 0:00:26]} Rf6 {[%emt 0:00:28]} 47. Ne7 {[%emt 0:02:45] [#]} b5 $1 {[%emt 0:00:31]} 48. Nf5 {[%emt 0:01:03]} (48. Rd1 $17) 48... d5 $19 {[%emt 0:00:24]} (48... bxc4 49. bxc4 d5 (49... a5 50. Ra2 $14) 50. Rb2) 49. c5 $2 {[%emt 0:00:31]} (49. Rd1) 49... a5 $19 {[%emt 0:00:34]} 50. Rd1 $2 {[%emt 0:02:21]} (50. Nd6 Bc6 51. g5) 50... b4 {[%emt 0:00:18]} 51. cxb4 {[%emt 0:00:13]} axb4 {[%emt 0:00:05]} 52. Nd4 {[%emt 0:01:04]} Ra6 {[%emt 0:01:04]} 53. Rc1 {[%emt 0:00:18]} Ra2 {[%emt 0:00:36]} 54. c6 {[%emt 0:00:21]} Bc8 {[%emt 0:00:09]} 55. c7 {[%emt 0:00:23]} Rh2 {[%emt 0:00:25]} 56. g5 $2 {[%emt 0:01:48]} (56. Nc6+ Kd6 57. Nxb4) 56... Rxh3 $19 {[%emt 0:00:20]} (56... Bxh3 57. c8=Q Bxc8 58. Rxc8 $16) 57. Nc6+ {[%emt 0:00:26]} Kd6 {[%emt 0:00:01]} 58. Na7 {[%emt 0:00:47]} Kd7 {[%emt 0:00:22]} (58... Bd7 $2 59. c8=Q Bxc8 60. Rxc8 $19) 59. Rc5 {[%emt 0:00:39]} Rg3 {[%emt 0:01:35]} (59... d4+ 60. Kxe4 f2 (60... Bb7+ $2 61. Kxd4 f2 62. c8=Q+ $17) 61. Rf5 Bb7+ (61... Kxc7 62. Nxc8 Rxb3 63. Rxf2 $11) (61... Rxb3 62. Rf7+ Ke8 63. Rxf2 $11) 62. Kxd4 Kxc7 (62... Rxb3 63. Rf7+ Ke8 64. Rxf2 $11) 63. Rxf2 $19) 60. Rxd5+ {[%emt 0:00:07]} Kxc7 {[%emt 0:00:01]} 61. Nxc8 {[%emt 0:00:55]} (61. Rc5+ $142 Kb6 62. Rxc8 Rxg5 (62... Kxa7 $2 63. Kxe4 Rxg5 64. Ke3 $19) 63. Kxe4 (63. Nc6 $2 Rf5 $19) 63... Kxa7 64. Kxf3) 61... Kxc8 $19 {[%emt 0:00:31]} 62. Rd1 {[%emt 0:00:29]} h3 {[%emt 0:00:12]} 63. Rh1 {[%emt 0:00:05]} Kd7 {[%emt 0:01:05]} 64. g6 {[%emt 0:00:05]} Ke6 {[%emt 0:00:11]} 65. g7 {[%emt 0:01:22]} Rxg7 {[%emt 0:01:01]} 66. Rxh3 {[%emt 0:00:06]} Rf7 {[%emt 0:00:34]} (66... Rg1 $142 67. Rh2 Kf5) 67. Kd4 {[%emt 0:00:50]} 0-1

[Event "7th Sharjah Masters 2024"]
[Site "Sharjah"]
[Date "2024.05.17"]
[Round "4.25"]
[White "Kadric, Denis"]
[Black "Mishra, Abhimanyu"]
[Result "1/2-1/2"]
[ECO "C54"]
[WhiteElo "2558"]
[BlackElo "2634"]
[Annotator "TA"]
[PlyCount "59"]
[EventDate "2024.05.13"]
[EventType "swiss"]
[EventCountry "UAE"]
[SourceTitle "playchess.com"]
[Source "ChessBase"]
[SourceQuality "1"]
[TimeControl "5400+30"]

{[%evp 12,59,12,19,22,15,28,20,24,19,28,11,0,0,13,12,4,15,19,0,7,14,25,29,15,0,3,-9,-12,-16,-8,-14,-14,-25,-18,-36,-36,-43,0,0,0,-6,0,0,0,0,0,0,9,0]} 1. e4 {[%emt 0:01:04]} e5 {[%emt 0:00:02]} 2. Nf3 {[%emt 0:00:18]} Nc6 {[%emt 0:00:07]} 3. Bc4 {[%emt 0:00:21]} Bc5 {[%emt 0:00:15]} 4. O-O {[%emt 0:00:12]} Nf6 {[%emt 0:00:19]} 5. d3 {[%emt 0:00:04]} d6 {[%emt 0:01:21]} 6. c3 {[%emt 0:00:09]} O-O {[%emt 0:00:24]} 7. Re1 {[%emt 0:01:17]} Bb6 {[%emt 0:00:12]} 8. a4 {[%emt 0:02:21]} a5 {[%emt 0:00:17]} 9. h3 {[%emt 0:01:36]} h6 {[%emt 0:00:10]} 10. Bb3 {[%emt 0:06:59]} Ne7 {[%emt 0:09:38]} 11. d4 {[%emt 0:22:24]} Ng6 {[%emt 0:02:13]} 12. Bc2 {[%emt 0:04:46]} Re8 {[%emt 0:11:52]} 13. Nbd2 {[%emt 0:01:10]} c6 {[%emt 0:00:24]} 14. Nf1 {[%emt 0:05:06]} d5 {[%emt 0:01:24]} 15. Nxe5 {[%emt 0:03:06]} Nxe5 {[%emt 0:00:29]} 16. dxe5 {[%emt 0:00:02]} Nxe4 {[%emt 0:00:12]} 17. Bxe4 {[%emt 0:00:40]} dxe4 {[%emt 0:00:09]} 18. Qxd8 {[%emt 0:16:15]} (18. Qh5 {is interesting.} Qd5 19. Bf4 e3 20. Nxe3 Qe4 21. Bg3) 18... Bxd8 {[%emt 0:18:00]} 19. Rxe4 {[%emt 0:00:37]} Bc7 {[%emt 0:00:49][%cal Oc8f5]} 20. f4 {[%emt 0:05:58]} Bf5 {[%emt 0:14:41]} 21. Re1 {[%emt 0:02:35]} f6 {[%emt 0:00:07][%cal Rf6e5]} 22. g4 {[%emt 0:06:30]} Bd3 {[%emt 0:01:39]} 23. Ng3 {[%emt 0:08:57]} fxe5 {[%emt 0:02:20]} 24. f5 {[%emt 0:00:02]} e4 {[%emt 0:01:37]} 25. Nh5 {[%emt 0:00:04] The position is equal.} Kf7 {[%emt 0:07:59]} 26. Bf4 {[%emt 0:00:04]} Bb6+ {[%emt 0:04:43] A strong pair of Bishops.} 27. Be3 {[%emt 0:00:07]} Bxe3+ {[%emt 0:00:05]} 28. Rxe3 {[%emt 0:00:02]} Rad8 {[%emt 0:00:19]} 29. Ng3 {[%emt 0:07:52]} Rd5 {[%emt 0:08:26]} 30. Rae1 {[%emt 0:02:37] Weighted Error Value: White=0.06 (flawless) /Black=0.05 (flawless) .  Inaccurate:     	---       	Black=1      OK:         	White=5     	Black=10     Best:        	White=1     	---} 1/2-1/2